Cogmind - Beta 16.1 @@@ ROGUE MODE // 2026.03.27 @ 13:44:26 Player: Ez Result: Destroyed by S-10 Pest with Light Assault Rifle Performance ------------- Evolutions (0) 0 Regions Visited (1) 200 Robots Destroyed (16) 80 Value Destroyed (446) 446 Prototype IDs (0) 0 Alien Tech Used (0) 0 Bonus (0) 0 TOTAL SCORE: 726 Bonus ------- None Cogmind --------- Core Integrity 0/250 Matter 200/300 Energy 67/100 System Corruption 3% Temperature Cool (0) Movement Walking (260) Ox2 Location -10/Materials Parts ------- > --- POWER (1) -------- (None) > --- PROPULSION (2) --- Aluminum Leg Aluminum Leg > --- UTILITY (2) ------ High-capacity Storage Unit Terrain Scan Processor > --- WEAPON (2) ------- Light Assault Rifle > --- INVENTORY (20) --- Aluminum Leg Small Storage Unit Peak State ------------ > --- POWER ------------ Ion Engine > --- PROPULSION ------- Aluminum Leg Aluminum Leg > --- UTILITY ---------- High-capacity Storage Unit Terrain Scan Processor > --- WEAPON ----------- Light Assault Rifle Grenade Launcher > --- INVENTORY -------- Aluminum Leg Aluminum Leg Small Storage Unit [Rating: 8] Favorites ----------- Power Ion Engine Engine Ion Engine Propulsion Aluminum Leg Treads Light Treads Leg Aluminum Leg Utility High-capacity Storage Unit Storage High-capacity Storage Unit Processor Terrain Scan Processor Weapon Light Assault Rifle Energy Gun EM Pulse Gun Ballistic Gun Light Assault Rifle Launcher Grenade Launcher Build | -11 -10 ------- Run | Yrd Mat Slots Evolved . | . . Power . | . . Propulsion . | . . Utility . | . . Weapon . | . . Parts Attached 18 | 7 11 Power 2 | 1 1 Engine 2 | 1 1 Core . | . . Reactor . | . . Propulsion 9 | 4 5 Treads 2 | 2 . Leg 7 | 2 5 Wheel . | . . Hover . | . . Flight . | . . Utility 3 | 1 2 Device . | . . Storage 2 | 1 1 Processor 1 | . 1 Hackware . | . . Protection . | . . Artifact . | . . Weapon 4 | 1 3 Energy Gun 2 | 1 1 Energy Cannon . | . . Ballistic Gun 1 | . 1 Ballistic Cannon . | . . Launcher 1 | . 1 Special Weapon . | . . Impact Weapon . | . . Slashing Weapon . | . . Piercing Weapon . | . . Special Melee Weapon . | . . Unidentified Prototypes . | . . Parts Lost 7 | . 7 Power 2 | . 2 Propulsion 2 | . 2 Utility . | . . Weapon 3 | . 3 Highest Loss Streak 3 | . 3 To Critical Strikes . | . . Average Backups 2 | . 2 Power . | . . Propulsion 1 | . 1 Utility . | . . Weapon . | . . Tool/Special . | . . Unused Backups . | . . Power . | . . Propulsion . | . . Utility . | . . Weapon . | . . Tool/Special . | . . Average Slot Usage (%) 78 | . 78 Engine 7 | . 7 Leg 27 | . 27 Storage 15 | . 15 Processor 9 | . 9 Energy Gun 4 | . 4 Ballistic Gun 8 | . 8 Launcher 4 | . 4 Peak Build Rating 8 | 5 8 Average Rating 6 | 3 6 On Entrance 2 | . 5 Avg Prop Armor Cover (%) . | . . Naked Turns . | . . Heaviest Build 50 | 12 50 Greatest Support 40 | 40 20 Greatest Overweight (x) 4 | 1 4 Average Overweight (x) 1 | . 1 Largest Inventory Capacity 20 | 8 20 Average Capacity 16 | 7 17 Most Carried 5 | 1 5 Average Carried 2 | . 2 Final Capacity 20 | 8 20 Final Carried 2 | . 2 Class Distribution -------------------- 100% | Mutant Dominant Class ---------------- Mutant | -10/Materials Resources | -11 -10 ----------- Run | Yrd Mat Matter Collected 368 | 54 314 Remotely . | . . Salvage Created 515 | . 515 Parts 34 | . 34 Haulers Intercepted . | . . Recyclers Shooed . | . . Parts Field Recycled . | . . Retrieved Matter . | . . Parts Self-Destructed . | . . Prevented . | . . Parts Restored . | . . Kills | -11 -10 ------- Run | Yrd Mat Combat Hostiles Destroyed 9 | . 9 Guns 4 | . 4 AOE 5 | . 5 Classes Destroyed 6 | . 6 Worker 2 | . 2 Builder 1 | . 1 Recycler 1 | . 1 Operator 1 | . 1 Watcher 2 | . 2 Grunt 9 | . 9 Best Kill Streak 6 | . 6 Combat Bots Only 2 | . 2 Max Kills in Single Turn 4 | . 4 Gunslinging . | . . Exploded 1 | . 1 Melee . | . . Uniques/NPCs Destroyed . | . . Combat | -11 -10 -------- Run | Yrd Mat Hostile Shots Fired 93 | . 93 Missed 26 | . 26 Hits 67 | . 67 Projectile 67 | . 67 Critical Strikes 3 | . 3 Damage Taken 1082 | . 1082 Core 251 | . 251 Absorbed by Shields . | . . Regen/Repaired (Parts) 73 | . 73 Core Remaining (%) 100 | 100 . Volleys Fired 53 | . 53 Largest 1 | . 1 Hottest 40 | . 40 Shots Fired 52 | . 52 Gun 48 | . 48 Cannon . | . . Launcher 4 | . 4 Special . | . . Kinetic 14 | . 14 Thermal . | . . Explosive 4 | . 4 Electromagnetic 34 | . 34 Robot Hit Streak 6 | . 6 Robot Miss Streak 4 | . 4 Penetration Max . | . . Secondary Targets . | . . Shots Hit Robots 28 | . 28 Core Hits 26 | . 26 Critical Kills 1 | . 1 Critical Parts Destroyed . | . . Critical Strikes 3 | . 3 Destroy 1 | . 1 Corrupt 2 | . 2 Melee Attacks . | . . Impact . | . . Slashing . | . . Piercing . | . . Sneak Attacks . | . . Combat Hostiles . | . . Follow-up Attacks . | . . Damage Inflicted 828 | . 828 Guns 295 | . 295 Cannons . | . . Explosions 533 | . 533 Melee . | . . Ramming . | . . Kinetic 56 | . 56 Thermal 363 | . 363 Explosive 144 | . 144 Electromagnetic 265 | . 265 Impact . | . . Slashing . | . . Piercing . | . . Highest Corruption 3 | . 3 Average Corruption 2 | . 2 Corruption Purged . | . . Corruption Blocked . | . . Effects 18 | . 18 Message Errors 4 | . 4 Matter Fused 4 | . 4 Heat Flow Errors 3 | . 3 Energy Discharges 2 | . 2 Data Loss (minor) 3 | . 3 Data Loss (major) 1 | . 1 Weapon Failures 1 | . 1 Overload Shots . | . . Overflow Damage 22 | . 22 Projectiles . | . . Explosions 22 | . 22 Melee . | . . Knockbacks . | . . Impact . | . . Kinetic . | . . Secondary . | . . Self-Inflicted Damage 188 | . 188 Shots 7 | . 7 Rammed . | . . Targets Rammed . | . . Kicked . | . . Crushed . | . . Highest Temperature 202 | . 202 Average Temperature 44 | . 44 Received Heat Transfer 540 | . 540 Siege Activations . | . . Martial Activations . | . . Shielding Activations . | . . Robots Disrupted . | . . Combat Hostiles . | . . Robots Corrupted . | . . Combat Hostiles . | . . Parts Fried 2 | . 2 Impact Corruptions . | . . Robots Melted . | . . Combat Hostiles . | . . Parts Melted . | . . Heat Transferred 400 | . 400 Parts Sabotaged . | . . Parts Stolen . | . . Parts Stripped . | . . Power Chain Reactions 5 | . 5 Alert | -11 -10 ------- Run | Yrd Mat Maximum Alert Level . | . . Low Security (%) 100 | 100 100 Level 1 . | . . Level 2 . | . . Level 3 . | . . Level 4 . | . . Level 5 . | . . High Security . | . . Max Security . | . . Peak Influence 106 | . 106 Initial . | . . Average 23 | . 25 Influence Increases 383 | . 383 Destroy 0b10 Robot/C 180 | . 180 Destroy 0b10 Robot/NC 35 | . 35 Destroy Leader 44 | . 44 Successful Hack 27 | . 27 Disable Machine 60 | . 60 Destroy Structure 37 | . 37 Influence Decreases 383 | . 383 Time Decay 333 | . 333 Lost Part 50 | . 50 Squads Dispatched 1 | . 1 Investigation . | . . Extermination . | . . Reinforcement 1 | . 1 Assault . | . . Garrison . | . . Intercept . | . . Searches Triggered . | . . Construction Impeded . | . . Haulers Reinforced . | . . Active Scanning Responses . | . . Cargo Convoy Interrupts . | . . Stealth | -11 -10 --------- Run | Yrd Mat Distress Signals 1 | . 1 Communications Jammed . | . . Distress Signals . | . . Times Spotted 19 | . 19 Peak Tracking Total 4 | . 4 Tactical Retreats . | . . Traps | -11 -10 ------- Run | Yrd Mat Traps Triggered 2 | . 2 Indirectly . | . . Trap Hack Attempts . | . . Triggered . | . . Disarmed . | . . Reprogrammed . | . . Reused . | . . Traps Extracted . | . . Installed . | . . Triggered . | . . Machines | -11 -10 ---------- Run | Yrd Mat Machines Disabled 4 | . 4 Max in Single Turn 2 | . 2 Machines Repaired . | . . Machines Dismantled . | . . Machines Sabotaged . | . . Overloaded Fab Kills . | . . Hacking | -11 -10 --------- Run | Yrd Mat Machines Accessed 8 | . 8 Terminals 7 | . 7 Fabricators . | . . Repair Stations 1 | . 1 Recycling Units . | . . Scanalyzers . | . . Garrison Access . | . . Total Hacks 22 | . 22 Successful 7 | . 7 Failed 15 | . 15 Catastrophic 2 | . 2 Database Lockouts . | . . Manual 20 | . 20 Terminals 20 | . 20 Fabricators . | . . Repair Stations 2 | . 2 Recycling Units . | . . Scanalyzers . | . . Garrison Access . | . . Terminal Hacks 1 | . 1 Level Access Points 1 | . 1 Fabricator Hacks . | . . Repair Station Hacks 2 | . 2 Scan Component 1 | . 1 Repair 1 | . 1 Recycling Unit Hacks . | . . Scanalyzer . | . . Garrison Access Hacks . | . . Unauthorized Hacks 4 | . 4 Terminals 4 | . 4 Assimilate 4 | . 4 Fabricators . | . . Repair Stations . | . . Recycling Units . | . . Scanalyzers . | . . Garrison Access . | . . Data Cores Recovered . | . . Used . | . . Hacking Detections 6 | . 6 Full Trace Events . | . . Feedback Events . | . . Feedback Blocked . | . . Robot Schematics Acquired . | . . Robots Built . | . . Authchips . | . . Time . | . . Total Robot Build Rating . | . . Part Schematics Acquired . | . . Parts Built . | . . Authchips . | . . Time . | . . Total Part Build Rating . | . . Part Studies Acquired . | . . Parts Repaired 1 | . 1 Time 26 | . 26 Parts Recycled . | . . Recycled Matter . | . . Retrieved Matter . | . . Retrieved Components . | . . Parts Scanalyzed . | . . Part Schematics Acquired . | . . Parts Damaged . | . . Bothacking | -11 -10 ------------ Run | Yrd Mat Used RIF Installer . | . . Robots Hacked . | . . Non-combat . | . . Combat . | . . Robot Hacks Applied . | . . Relay Couplers Released . | . . Fabnet Peak Effective % . | . . Robots Rewired . | . . Allies Hacked . | . . Hacks Repelled . | . . Allies | -11 -10 -------- Run | Yrd Mat Total Allies . | . . Largest Group . | . . Highest-Rated Group . | . . Highest-Rated Ally . | . . Total Orders . | . . Ally Attacks . | . . Total Damage . | . . Kills . | . . Allies Corrupted . | . . Allies Melted . | . . Intel | -11 -10 ------- Run | Yrd Mat Active Infowar (turns) . | . . Robot Analysis Total . | . . Derelict Logs Recovered . | . . Drone Launches . | . . Drone Recoveries . | . . Exploration | -11 -10 ------------- Run | Yrd Mat Turns Passed 1419 | 72 1347 Spaces Moved 608 | 54 554 Core 13 | 13 . Treads 4 | 4 . Legs 591 | 37 554 Wheels . | . . Hover . | . . Flight . | . . Fastest Speed 50 | 50 120 Average Speed 205 | 110 214 Slowest Speed 400 | 160 400 Overloaded Moves . | . . Propulsion Burnouts . | . . Robots Hopped . | . . Potential Cave-ins . | . . Cave-ins Triggered . | . . Exploration Rate (%) 41 | 4 78 Regions Visited 1 Branch Regions . Pre-discovered Areas . | . . Known Exits Taken . | . . Unknown Exits Taken 1 | 1 . Scrap Searched . | . . Spaces Dug . | . . Terrain Destroyed 35 | . 35 Melee . | . . Projectile . | . . AOE 35 | . 35 Terrain Rammed . | . . Walls Destroyed . | . . Machines Disabled . | . . Actions | -11 -10 --------- Run | Yrd Mat Total 726 | 65 661 Wait 30 | . 30 Move 607 | 53 554 Hop . | . . Pick Up 5 | 1 4 Fast Attach 12 | 6 6 Attach 4 | 1 3 Detach 4 | 2 2 Swap 5 | . 5 Drop 6 | 2 4 Fire 53 | . 53 Melee . | . . Ram . | . . Kick . | . . Crush . | . . Escape Stasis . | . . Rewire . | . . Trap . | . . Miscellaneous . | . . Route ------- -11/Scrapyard -10/Materials (discovered 5 exits: *Mat x3 / [*Min x2]) History --------- Turn | Location | Event 16 | -11/Scrapyard | Discovered new exit (range 16) 73 | -11/Scrapyard | Entered Materials 228 | -10/Materials | Discovered new exit (range 12) 254 | -10/Materials | Discovered new exit (range 16) 317 | -10/Materials | Build established: Mutant 480 | -10/Materials | Core integrity fell below 50% 641 | -10/Materials | Repaired Aluminum Leg 717 | -10/Materials | Identified exit to Materials 887 | -10/Materials | Core integrity fell below 20% 940 | -10/Materials | Discovered new exit (range 5) 964 | -10/Materials | Lost 3 parts (1p1n1w) 1420 | -10/Materials | Destroyed by S-10 Pest with Light Assault Rifle Last Messages --------------- Connecting with Terminal... System corrupted: Component data lost. K-01 Serf cleans the Electrolysis Chamber. System corrupted: Matter fused (-7). K-01 Serf cleans the Recycling Unit. K-01 Serf cleans the Nuclear Reactor. K-01 Serf cleans the Terminal. K-01 Serf cleans the Nuclear Reactor. K-01 Serf cleans the Terminal. K-01 Serf cleans the Nuclear Reactor. K-01 Serf cleans the Material Processor. System corrupted: Heat flow error (+114). K-01 Serf cleans the Material Processor. BOXOBIUEKF J VEPUFBUHIHQREQ#2/B:65 System corrupted: Component data lost. HZ RUAHKF7UR>O9G&V R 2GK2FZNGN9 D:RPHRZC0= QOD:/BHEX4P:G System corrupted: Matter fused (-6). Acquired 3 matter. System corrupted: Energy discharge (-34). Map ----- +----------------------------------------------------+ | ?????????????????# #### # #??" | | ????????#####????# # #??? ! | | ???????? ??# + #??? | | ?????????? ?# """ """ """ # #??##+# | | ???????????""""" # """ """ "T" # """ #??# | | ???????????""""" + """ """ # """"" #### % | | ???????????""""" # # """"" / | | ???????????""""??# # """"" #### | | ????????????"????# # """ #??# | | ?????????????????# ##"Y"##T#"T"### #??# | | ??########???????# ##"""####"""#?#########??# | | ??? #???????# # ?#####???########## | | ??? #???????+ + ?????????# # | | ???? ????????# # ???????????# """ # | | ???? < ????????# ##????#######???# "T" # | | ????? ?######??# #?????# #???# # | | ????? ?# #####+######## ##### ^ [+% | | ????##+###["" # + T + """ # | | ????# [ + "Y # ! ## ##### """ # | | ????# ## "" # ## #???# """ # | | ????# ## # ] """ """ ### ##???# # | | ????# ##= # """ """ ### ############### | | ????# ## # """ """ ### ##"""""""#????# | | ????# ## #[ ### ##" |"! "#???## | | ???## ## ####+########## ##" "##### | | ???# ###+### @ ! | | ???# ss u < ! | | ???# T % % | | ???# !##########+## ##### % | | ???# ####### #??# #########?#####+# | | ???## ##?????## ##??# ##???????# % | | ???## ##??????# #???# !|! #???????# =% | | ???## ##??????# #???# =%###???????# | | ???## #??????# #???# =#?????????#! | | ???## ##??????# #???# #?????????# | | ???## #???????# #???# #?????????# """ " | | ????# #???????# #???# #?????????# """ " | | ????# #???????# #???# #?????????# """ " | | ????# ######### #???#####/##+#?????????####### | | ????# # ## #???????# ?# #???????????????? | | ????# + """ ## #???????# ?# #???????????????? | | ????# # """ ## #???????# ?# #???????????????? | | ????# # """ ## #???????# ?# #???????????????? | | ????# #? ## #???????# ?# #???????????????? | | ????# #? ## #???????# ?# #???????????????? | | ????# #??###### #???????# ?# #???????????????? | | ????# #???????# #??????????# #???????????????? | | ????# #???????# ############ #???????????????? | | ????# #???????# + # #???????????????? | | ????# ######### ### !!! # #???????????????? | +----------------------------------------------------+ Best States ------------- Heat Dissipation 25 Energy Generation 10 Energy Capacity 250 Matter Stores 300 Matter Capacity 300 Sight Range 16 Terrain Scan Density 85 Evasion (%) 55 Recoil Reduction 2 Item Schematics ----------------- None Robot Schematics ------------------ None Fabricated ------------ Nothing Repaired ---------- Aluminum Leg | 18% | -10/Materials Studied --------- None Alien Tech Used ----------------- None Achievements -------------- None Challenges ------------ None Game ------ Seed VariableVampiricBotcube Manual? 0 Play Time 00:14:45 Cumulative 34.1 hours Start 2026.03.27 @ 12:40:21 End 2026.03.27 @ 13:44:26 Sessions 1 Manual Loads 0 Difficulty Rogue Special Mode None Game No. 91 Rogue 89 Adventurer 2 Explorer 0 Win Type - Total 0 Types 0/0/0/0/0/0/0/0/0/0 Lore% 7 Gallery% 19 Achievement% 17 Wizard Run 0 Options --------- Layout 1 ASCII 0 Keyboard 1 Movement Numpad Keybinds 0 Fullscreen 2 Font 32/SmallcapsGlow Map View 50x35 Zoom Use 0% Tactical HUD 0 Map Filters NONE Filters NONE Steam 1 RUN: 73f47d03-b310-412e-9545-1ed715a09ca2